lending/lending_fUSD_20240410
["ID","MTS","AMOUNT","RATE_DAILY","PERIOD"]
[322089069,1712757054498,-447.14,0.00054876,120]
[322089070,1712757054507,-500.0,0.00054876,120]
[322089071,1712757054516,-500.0,0.00054876,120]
[322089072,1712757054526,-500.0,0.00054876,120]
[322089073,1712757054535,-500.0,0.00054876,120]
[322089074,1712757054545,-500.0,0.00054876,120]
[322089075,1712757054554,-500.0,0.00054876,120]
[322089076,1712757054564,-500.0,0.00054876,120]
[322089077,1712757054574,-500.0,0.00054876,120]
[322089078,1712757054583,-574.96,0.00054876,120]
[322089079,1712757054592,-500.0,0.00054876,120]
[322089080,1712757054601,-500.0,0.00054876,120]
[322089081,1712757054610,-500.0,0.00054876,120]
[322089082,1712757054620,-500.0,0.00054876,120]
[322089083,1712757054629,-500.0,0.00054876,120]
[322089084,1712757054639,-500.0,0.00054876,120]
[322089085,1712757054649,-500.0,0.00054876,120]
[322089086,1712757054658,-500.0,0.00054876,120]
[322089087,1712757054667,-500.0,0.00054876,120]
[322089088,1712757054678,-500.0,0.00054876,120]
[322089089,1712757054687,-500.0,0.00054876,120]
[322089090,1712757054696,-500.0,0.00054876,120]
[322089091,1712757054705,-500.0,0.00054876,120]
[322089092,1712757054715,-500.0,0.00054876,120]
[322089093,1712757054725,-500.0,0.00054876,120]
[322089094,1712757054736,-4253.82,0.00054876,120]
[322089095,1712757054746,-500.0,0.00054876,120]
[322089096,1712757054755,-1535.71,0.00054876,120]
[322089097,1712757054765,-500.0,0.00054876,120]
[322089098,1712757054776,-500.0,0.00054876,120]
[322089099,1712757054791,-500.0,0.00054876,120]
[322089100,1712757054801,-500.0,0.00054876,120]
[322089101,1712757054811,-629.9,0.00054876,120]
[322089102,1712757054820,-663.78,0.00054876,120]
[322089103,1712757054831,-500.0,0.00054876,120]
[322089104,1712757054840,-555.16,0.00054876,21]
[322089105,1712757054849,-500.0,0.00054876,120]
[322089106,1712757054858,-500.0,0.00054876,120]
[322089107,1712757054869,-500.0,0.00054876,120]
[322089108,1712757054878,-975.91,0.00054876,120]
[322089109,1712757054889,-500.0,0.00054876,120]
[322089110,1712757054898,-500.0,0.00054876,120]
[322089111,1712757054909,-500.0,0.00054876,120]
[322089112,1712757054918,-1859.65,0.00054876,120]
[322089113,1712757054928,-587.11,0.00054876,120]
[322089114,1712757054938,-752.16,0.00054876,120]
[322089115,1712757054947,-799.99,0.00054876,120]
[322089116,1712757054957,-500.0,0.00054876,120]
[322089117,1712757054966,-1250.0,0.00054876,120]
[322089118,1712757054975,-836.75,0.00054876,120]
[322089119,1712757054989,-500.0,0.00054876,120]
[322089120,1712757054999,-500.0,0.00054876,120]
[322089121,1712757055009,-605.43,0.00054876,120]
[322089122,1712757055019,-500.0,0.00054876,120]
[322089123,1712757055029,-1130.05,0.00054876,120]
[322089124,1712757055039,-500.0,0.00054876,120]
[322089125,1712757055048,-365.38,0.00054876,120]
[322089126,1712757055058,-500.0,0.00054876,120]
[322089127,1712757055067,-500.0,0.00054876,120]
[322089128,1712757055077,-500.0,0.00054876,120]
[322089129,1712757055086,-500.0,0.00054876,120]
[322089130,1712757055096,-529.05,0.00054876,120]
[322089131,1712757055105,-500.0,0.00054876,120]
[322089132,1712757055115,-500.0,0.00054876,120]
[322089133,1712757055124,-500.0,0.00054876,120]
[322089134,1712757055134,-903.63,0.00054876,120]
[322089135,1712757055143,-500.0,0.00054876,120]
[322089136,1712757055152,-500.0,0.00054876,120]
[322089137,1712757055162,-500.0,0.00054876,120]
[322089138,1712757055172,-500.52582502,0.00054876,120]
[322089139,1712757055181,-500.0,0.00054876,120]
[322089140,1712757055191,-631.16,0.00054876,120]
[322089141,1712757055200,-621.38,0.00054876,120]
[322089142,1712757055209,-243.78060176,0.00054876,120]
[322089143,1712757055219,-500.0,0.00054876,120]
[322089144,1712757055229,-2417.1,0.00054876,120]
[322089145,1712757055243,-557.02715782,0.00054876,120]
[322089146,1712757055253,-627.1,0.00054876,120]
[322089147,1712757055262,-500.0,0.00054876,120]
[322089148,1712757055271,-500.0,0.00054876,120]
[322089149,1712757055281,-1028.81,0.00054876,120]
[322089150,1712757055290,-500.0,0.00054876,120]
[322089151,1712757055299,-1163.25,0.00054876,120]
[322089152,1712757055309,-811.61,0.00054876,120]
[322089153,1712757055318,-500.0,0.00054876,120]
[322089154,1712757055328,-698.73,0.00054876,120]
[322089155,1712757055338,-500.0,0.00054876,120]
[322089156,1712757055348,-500.0,0.00054876,120]
[322089157,1712757055357,-1531.74,0.00054876,120]
[322089158,1712757055367,-1000.0,0.00054876,120]
[322089159,1712757055377,-500.0,0.00054876,120]
[322089160,1712757055387,-500.0,0.00054876,120]
[322089161,1712757055396,-538.59823181,0.00054876,120]
[322089162,1712757055406,-154.24,0.00054876,120]
[322089163,1712757055416,-500.0,0.00054876,120]
[322089164,1712757055426,-2383.85,0.00054876,120]
[322089165,1712757055435,-500.0,0.00054876,120]
[322089166,1712757055445,-500.0,0.00054876,120]
[322089167,1712757055454,-150.0,0.0005488,14]
[322089168,1712757055465,-150.0,0.00054881,120]
[322089169,1712757055474,-150.0,0.00054881,14]
[322089170,1712757055487,-150.0,0.00054887,14]
[322089171,1712757055497,-150.0,0.00054892,14]
[322089172,1712757055507,-1222.34231004,0.000549,2]
[322089173,1712757055517,-7121.36526514,0.000549,2]
[322089174,1712757055527,-1500.0,0.00054901,14]
[322089175,1712757055537,-150.0,0.00054909,14]
[322089176,1712757055546,-150.0,0.00054911,14]
[322089177,1712757055556,-150.0,0.00054915,14]
[322089178,1712757055565,-150.0,0.00054917,14]
[322089179,1712757055575,-150.0,0.00054917,14]
[322089180,1712757055585,-300.0,0.00054922,14]
[322089181,1712757055724,-150.0,0.00054924,120]
[322089182,1712757055737,-150.0,0.00054924,120]
[322089183,1712757055751,-150.0,0.00054924,120]
[322089184,1712757055761,-150.0,0.00054928,14]
[322089185,1712757055771,-150.0,0.00054929,14]
[322089186,1712757055781,-150.0,0.00054931,14]
[322089187,1712757055792,-300.0,0.00054931,14]
[322089188,1712757055802,-1500.0,0.00054933,14]
[322089189,1712757055811,-150.0,0.00054942,14]
[322089190,1712757055821,-300.0,0.00054949,14]
[322089191,1712757055831,-500.0,0.00054958,120]
[322089192,1712757055841,-479.04067499,0.00054958,120]
[322089193,1712757055851,-500.0,0.00054958,120]
[322089194,1712757055861,-500.0,0.00054958,120]
[322089195,1712757055873,-500.0,0.00054958,120]
[322089196,1712757055885,-500.0,0.00054958,120]
[322089197,1712757055895,-498.29,0.00054958,120]
[322089198,1712757055905,-500.0,0.00054958,120]
[322089199,1712757055915,-500.0,0.00054958,120]
[322089200,1712757055926,-150.0,0.00054958,14]
[322089201,1712757055936,-500.0,0.00054958,120]
[322089202,1712757055946,-500.0,0.00054958,120]
[322089203,1712757055956,-252.46,0.00054958,120]
[322089204,1712757055967,-500.0,0.00054958,120]
[322089205,1712757055978,-500.0,0.00054958,120]
[322089206,1712757055990,-500.0,0.00054958,120]
[322089207,1712757055999,-500.0,0.00054958,120]
[322089208,1712757056009,-500.0,0.00054958,120]
[322089209,1712757056018,-500.0,0.00054958,120]
[322089210,1712757056029,-319.59,0.00054958,120]
[322089211,1712757056039,-230.82524844,0.00054958,120]
[322089212,1712757056048,-500.0,0.00054958,120]
[322089213,1712757056058,-500.0,0.00054958,120]
[322089214,1712757056067,-179.14,0.00054958,120]
[322089215,1712757056077,-500.0,0.00054958,120]
[322089216,1712757056087,-500.0,0.00054958,30]
[322089217,1712757056097,-500.0,0.00054958,120]
[322089218,1712757056106,-565.89,0.00054958,120]
[322089219,1712757056115,-500.0,0.00054958,120]
[322089220,1712757056125,-500.0,0.00054958,120]
[322089221,1712757056134,-500.0,0.00054958,120]
[322089222,1712757056143,-500.0,0.00054958,120]
[322089223,1712757056153,-500.0,0.00054958,120]
[322089224,1712757056164,-500.0,0.00054958,120]
[322089225,1712757056174,-478.15,0.00054958,120]
[322089226,1712757056184,-500.0,0.00054958,120]
[322089227,1712757056193,-150.0,0.00054958,120]
[322089228,1712757056203,-500.0,0.00054958,120]
[322089229,1712757056212,-500.0,0.00054958,120]
[322089230,1712757056222,-500.0,0.00054958,120]
[322089231,1712757056231,-500.0,0.00054958,120]
[322089232,1712757056242,-500.0,0.00054958,120]
[322089233,1712757056252,-500.0,0.00054958,120]
[322089234,1712757056261,-500.0,0.00054958,120]
[322089235,1712757056271,-481.16,0.00054958,120]
[322089236,1712757056280,-241.56,0.00054958,120]
[322089237,1712757056290,-500.0,0.00054958,120]
[322089238,1712757056300,-500.0,0.00054958,120]
[322089239,1712757056309,-500.0,0.00054958,120]
[322089240,1712757056319,-500.0,0.00054958,120]
[322089241,1712757056328,-500.0,0.00054958,120]
[322089242,1712757056337,-512.63,0.00054958,120]
[322089243,1712757056347,-500.0,0.00054958,120]
[322089244,1712757056356,-500.0,0.00054958,120]
[322089245,1712757056366,-500.0,0.00054958,120]
[322089246,1712757056375,-500.0,0.00054958,120]
[322089247,1712757056384,-500.0,0.00054958,120]
[322089248,1712757056394,-500.0,0.00054958,120]
[322089249,1712757056403,-500.0,0.00054958,120]
[322089250,1712757056413,-1475.0,0.00054958,120]
[322089251,1712757056422,-500.0,0.00054958,120]
[322089252,1712757056432,-500.0,0.00054958,120]
[322089253,1712757056442,-500.0,0.00054958,120]
[322089254,1712757056451,-500.0,0.00054958,120]
[322089255,1712757056460,-500.0,0.00054958,120]
[322089256,1712757056470,-500.0,0.00054958,120]
[322089257,1712757056479,-500.0,0.00054958,120]
[322089258,1712757056491,-500.0,0.00054958,120]
[322089259,1712757056501,-500.0,0.00054958,120]
[322089260,1712757056510,-500.0,0.00054958,120]
[322089261,1712757056519,-500.0,0.00054958,120]
[322089262,1712757056528,-500.0,0.00054958,120]
[322089263,1712757056538,-500.0,0.00054958,120]
[322089264,1712757056548,-500.0,0.00054958,120]
[322089265,1712757056558,-500.0,0.00054958,120]
[322089266,1712757056567,-500.0,0.00054958,120]
[322089267,1712757056577,-500.0,0.00054958,120]
[322089268,1712757056586,-500.0,0.00054958,120]
[322089269,1712757056596,-500.0,0.00054958,120]
[322089270,1712757056605,-500.0,0.00054958,120]
[322089271,1712757056615,-640.61,0.00054958,120]
[322089272,1712757056625,-500.0,0.00054958,120]
[322089273,1712757056635,-3449.29,0.00054958,120]
[322089274,1712757056645,-500.0,0.00054958,120]
[322089275,1712757056653,-500.0,0.00054958,120]
[322089276,1712757056663,-578.79,0.00054958,120]
[322089277,1712757056672,-500.0,0.00054958,120]
[322089278,1712757056681,-500.0,0.00054958,120]
[322089279,1712757056692,-503.38,0.00054958,120]
[322089280,1712757056703,-500.0,0.00054958,120]
[322089281,1712757056712,-670.88,0.00054958,120]
[322089282,1712757056722,-1048.49,0.00054958,120]
[322089283,1712757056732,-710.67,0.00054958,120]
[322089284,1712757056742,-500.0,0.00054958,120]
[322089285,1712757056751,-500.0,0.00054958,120]
[322089286,1712757056761,-500.0,0.00054958,120]
[322089287,1712757056770,-228.65,0.00054958,120]
[322089288,1712757056780,-500.0,0.00054958,120]
[322089289,1712757056789,-500.0,0.00054958,120]
[322089290,1712757056799,-509.52,0.00054958,120]
[322089291,1712757056808,-500.0,0.00054958,120]
[322089292,1712757056817,-988.0,0.00054958,120]
[322089293,1712757056827,-500.0,0.00054958,120]
[322089294,1712757056836,-500.0,0.00054958,120]
[322089295,1712757056846,-500.0,0.00054958,120]
[322089296,1712757056855,-500.0,0.00054958,120]
[322089297,1712757056865,-500.0,0.00054958,120]
[322089298,1712757056874,-234.75,0.00054958,120]
[322089299,1712757056884,-1705.6,0.00054958,120]
[322089300,1712757056895,-500.0,0.00054958,120]
[322089301,1712757056904,-500.0,0.00054958,120]
[322089302,1712757056914,-718.41,0.00054958,120]
[322089303,1712757056923,-500.0,0.00054958,120]
[322089304,1712757056934,-500.0,0.00054958,120]
[322089305,1712757056944,-500.0,0.00054958,120]
[322089306,1712757056953,-292.85,0.00054958,120]
[322089307,1712757056962,-500.0,0.00054958,120]
[322089308,1712757056972,-500.0,0.00054958,120]
[322089309,1712757056981,-500.0,0.00054958,120]
[322089310,1712757056994,-1000.0,0.00054958,120]
[322089311,1712757057003,-500.0,0.00054958,120]
[322089312,1712757057012,-500.0,0.00054958,120]
[322089313,1712757057022,-500.0,0.00054958,120]
[322089314,1712757057032,-4568.49,0.00054958,120]
[322089315,1712757057042,-500.0,0.00054958,120]
[322089316,1712757057052,-500.0,0.00054958,120]
[322089317,1712757057062,-1357.53,0.00054958,120]
[322089318,1712757057071,-500.0,0.00054958,120]
[322089319,1712757057080,-500.0,0.00054958,120]
[322089320,1712757057089,-500.0,0.00054958,120]
[322089321,1712757057099,-566.8,0.00054958,120]
[322089322,1712757057108,-500.0,0.00054958,2]
[322089323,1712757057118,-500.0,0.00054958,120]
[322089324,1712757057127,-150.26448833,0.00054958,120]
[322089325,1712757057137,-500.0,0.00054958,120]
[322089326,1712757057146,-305.25926823,0.00054958,120]
[322089327,1712757057155,-500.0,0.00054958,120]
[322089328,1712757057165,-464.58,0.00054958,120]
[322089329,1712757057174,-500.0,0.00054958,120]
[322089330,1712757057184,-500.0,0.00054958,120]
[322089331,1712757057194,-500.0,0.00054958,120]
[322089332,1712757057203,-500.0,0.00054958,120]
[322089333,1712757057213,-558.65,0.00054958,120]
[322089334,1712757057222,-500.0,0.00054958,120]
[322089335,1712757057231,-500.0,0.00054958,120]
[322089336,1712757057242,-574.96,0.00054958,120]
[322089337,1712757057251,-500.0,0.00054958,120]
[322089338,1712757057261,-500.0,0.00054958,120]
[322089339,1712757057270,-500.0,0.00054958,120]
[322089340,1712757057280,-500.0,0.00054958,120]
[322089341,1712757057289,-500.0,0.00054958,120]
[322089342,1712757057299,-500.0,0.00054958,120]
[322089343,1712757057308,-500.0,0.00054958,120]
[322089344,1712757057318,-500.0,0.00054958,120]
[322089345,1712757057327,-500.0,0.00054958,120]
[322089346,1712757057337,-500.0,0.00054958,120]
[322089347,1712757057346,-500.0,0.00054958,120]
[322089348,1712757057356,-500.0,0.00054958,120]
[322089349,1712757057366,-500.0,0.00054958,120]
[322089350,1712757057375,-500.0,0.00054958,120]
[322089351,1712757057385,-500.0,0.00054958,120]
[322089352,1712757057394,-4253.82,0.00054958,120]
[322089353,1712757057404,-500.0,0.00054958,120]
[322089354,1712757057413,-1535.71,0.00054958,120]
[322089355,1712757057423,-500.0,0.00054958,120]
[322089356,1712757057432,-566.42,0.00054958,120]
[322089357,1712757057441,-500.0,0.00054958,120]
[322089358,1712757057451,-500.0,0.00054958,120]
[322089359,1712757057460,-663.78,0.00054958,120]
[322089360,1712757057469,-555.16,0.00054958,21]
[322089361,1712757057480,-500.0,0.00054958,120]
[322089362,1712757057493,-500.0,0.00054958,120]
[322089363,1712757057503,-500.0,0.00054958,120]
[322089364,1712757057513,-975.91,0.00054958,120]
[322089365,1712757057522,-500.0,0.00054958,120]
[322089366,1712757057532,-289.64,0.00054958,120]
[322089367,1712757057541,-500.0,0.00054958,120]
[322089368,1712757057550,-500.0,0.00054958,120]
[322089369,1712757057560,-1859.65,0.00054958,120]
[322089370,1712757057569,-587.11,0.00054958,120]
[322089371,1712757057579,-752.16,0.00054958,120]
[322089372,1712757057589,-799.99,0.00054958,120]
[322089373,1712757057599,-500.0,0.00054958,120]
[322089374,1712757057608,-1250.0,0.00054958,120]
[322089375,1712757057618,-836.75,0.00054958,120]
[322089376,1712757057627,-500.0,0.00054958,120]
[322089377,1712757057637,-500.0,0.00054958,120]
[322089378,1712757057647,-605.43,0.00054958,120]
[322089379,1712757057657,-500.0,0.00054958,120]
[322089380,1712757057666,-1130.05,0.00054958,120]
[322089381,1712757057676,-500.0,0.00054958,120]
[322089382,1712757057690,-500.0,0.00054958,120]
[322089383,1712757057700,-500.0,0.00054958,120]
[322089384,1712757057709,-527.94,0.00054958,120]
[322089385,1712757057719,-500.0,0.00054958,120]
[322089386,1712757057728,-500.0,0.00054958,120]
[322089387,1712757057738,-500.0,0.00054958,120]
[322089388,1712757057747,-903.63,0.00054958,120]
[322089389,1712757057757,-500.0,0.00054958,120]
[322089390,1712757057766,-500.0,0.00054958,120]
[322089391,1712757057775,-500.0,0.00054958,120]
[322089392,1712757057784,-500.0,0.00054958,120]
[322089393,1712757057793,-631.16,0.00054958,120]
[322089394,1712757057802,-621.38,0.00054958,120]
[322089395,1712757057811,-500.0,0.00054958,120]
[322089396,1712757057823,-2417.1,0.00054958,120]
[322089397,1712757057832,-500.0,0.00054958,120]
[322089398,1712757057841,-500.0,0.00054958,120]
[322089399,1712757057850,-1028.81,0.00054958,120]
[322089400,1712757057859,-500.0,0.00054958,120]
[322089401,1712757057870,-1163.25,0.00054958,120]
[322089402,1712757057880,-811.61,0.00054958,120]
[322089403,1712757057889,-500.0,0.00054958,120]
[322089404,1712757057898,-698.73,0.00054958,120]
[322089405,1712757057910,-500.0,0.00054958,120]
[322089406,1712757057918,-1531.74,0.00054958,120]
[322089407,1712757057928,-1000.0,0.00054958,120]
[322089408,1712757057937,-500.0,0.00054958,120]
[322089409,1712757057947,-500.0,0.00054958,120]
[322089410,1712757057956,-500.0,0.00054958,120]
[322089411,1712757057966,-2383.85,0.00054958,120]
[322089412,1712757057975,-500.0,0.00054958,120]
[322089413,1712757057986,-150.0,0.00054967,120]
[322089414,1712757057996,-150.0,0.00054972,14]
[322089415,1712757058005,-300.0,0.00054973,14]
[322089416,1712757058014,-150.0,0.00054982,14]
[322089417,1712757058023,-150.0,0.00054988,14]
[322089418,1712757058031,-300.0,0.00054996,14]
[322089419,1712757058040,-321.08269601,0.00054997,14]
[322089420,1712757058049,-150.0,0.00054999,14]
[322089421,1712757058058,-151.91320181,0.00055,63]
[322089422,1712757058067,-100000.0,0.00055,55]
[322089423,1712757058076,-13552.81632359,0.00055,120]
[322089424,1712757058085,-1000.0,0.00055,5]
[322089425,1712757058094,-195.03291892,0.00055,120]
[322089426,1712757058104,-500.0,0.00055,14]
[322089427,1712757058113,-500.0,0.00055,7]
[322089428,1712757058122,-32898.33860709,0.00055,30]
[322089429,1712757058131,-3200.0,0.00055,4]
[322089430,1712757058140,-150.08,0.00055,34]
[322089431,1712757058149,-240.0,0.00055,104]
[322089432,1712757058158,-224.49,0.00055,120]
[322089433,1712757058167,-1500.0,0.00055,14]
[322089434,1712757058178,-150.0,0.00055,12]
[322089435,1712757058187,-150.0,0.0005501,120]
[322089436,1712757058195,-150.0,0.0005501,14]
[322089437,1712757058205,-300.0,0.00055013,14]
[322089438,1712757058215,-150.0,0.00055017,14]
[322089439,1712757058224,-150.0,0.00055033,14]
[322089440,1712757058234,-150.0,0.00055037,14]
[322089441,1712757058243,-500.0,0.00055041,120]
[322089442,1712757058252,-624.72,0.00055041,120]
[322089443,1712757058261,-500.0,0.00055041,120]
[322089444,1712757058270,-500.0,0.00055041,120]
[322089445,1712757058279,-239.66,0.00055041,120]
[322089446,1712757058288,-500.0,0.00055041,120]
[322089447,1712757058296,-348.04059497,0.00055041,120]
[322089448,1712757058305,-500.0,0.00055041,120]
[322089449,1712757058313,-500.0,0.00055041,120]
[322089450,1712757058323,-500.0,0.00055041,120]
[322089451,1712757058332,-170.86,0.00055041,120]
[322089452,1712757058342,-160.26,0.00055041,120]
[322089453,1712757058351,-606.95,0.00055041,120]
[322089454,1712757058360,-272.78,0.00055041,120]
[322089455,1712757058369,-500.0,0.00055041,120]
[322089456,1712757058378,-500.0,0.00055041,120]
[322089457,1712757058388,-500.0,0.00055041,120]
[322089458,1712757058397,-500.0,0.00055041,120]
[322089459,1712757058406,-280.77846166,0.00055041,30]
[322089460,1712757058414,-500.0,0.00055041,120]
[322089461,1712757058423,-500.0,0.00055041,120]
[322089462,1712757058432,-262.72014008,0.00055041,120]
[322089463,1712757058441,-155.46805274,0.00055041,120]
[322089464,1712757058449,-500.0,0.00055041,120]
[322089465,1712757058458,-500.0,0.00055041,120]
[322089466,1712757058467,-500.0,0.00055041,120]
[322089467,1712757058475,-500.0,0.00055041,120]
[322089468,1712757058486,-150.0,0.00055041,120]
[322089469,1712757058495,-500.0,0.00055041,120]
[322089470,1712757058504,-500.0,0.00055041,120]
[322089471,1712757058514,-227.24,0.00055041,120]
[322089472,1712757058523,-155.2,0.00055041,120]
[322089473,1712757058532,-500.0,0.00055041,120]
[322089474,1712757058541,-500.0,0.00055041,120]
[322089475,1712757058550,-500.0,0.00055041,120]
[322089476,1712757058559,-500.0,0.00055041,120]
[322089477,1712757058569,-500.0,0.00055041,120]
[322089478,1712757058577,-500.0,0.00055041,120]
[322089479,1712757058586,-500.0,0.00055041,120]
[322089480,1712757058595,-500.0,0.00055041,120]
[322089481,1712757058605,-500.0,0.00055041,120]
[322089482,1712757058614,-648.82,0.00055041,120]
[322089483,1712757058749,-500.0,0.00055041,120]
[322089484,1712757058760,-244.82,0.00055041,120]
[322089485,1712757058769,-500.0,0.00055041,120]
[322089486,1712757058779,-500.0,0.00055041,120]
[322089487,1712757058788,-271.93,0.00055041,120]
[322089488,1712757058799,-1475.0,0.00055041,120]
[322089489,1712757058810,-500.0,0.00055041,120]
[322089490,1712757058821,-500.0,0.00055041,120]
[322089491,1712757058831,-500.0,0.00055041,120]
[322089492,1712757058841,-500.0,0.00055041,120]
[322089493,1712757058852,-500.0,0.00055041,120]
[322089494,1712757058862,-500.0,0.00055041,120]
[322089495,1712757058872,-500.0,0.00055041,120]
[322089496,1712757058886,-500.0,0.00055041,120]
[322089497,1712757058899,-500.0,0.00055041,120]
[322089498,1712757058909,-500.0,0.00055041,120]
[322089499,1712757058919,-500.0,0.00055041,120]
[322089500,1712757058930,-500.0,0.00055041,120]
[322089501,1712757058939,-500.0,0.00055041,120]
[322089502,1712757058949,-500.0,0.00055041,120]
[322089503,1712757058959,-500.0,0.00055041,120]
[322089504,1712757058970,-500.0,0.00055041,120]
[322089505,1712757058981,-500.0,0.00055041,120]
[322089506,1712757058992,-500.0,0.00055041,120]
[322089507,1712757059001,-500.0,0.00055041,120]
[322089508,1712757059010,-500.0,0.00055041,120]
[322089509,1712757059019,-640.61,0.00055041,120]
[322089510,1712757059029,-500.0,0.00055041,120]
[322089511,1712757059039,-3449.29,0.00055041,120]
[322089512,1712757059049,-171.63,0.00055041,120]
[322089513,1712757059058,-500.0,0.00055041,120]
[322089514,1712757059068,-500.0,0.00055041,120]
[322089515,1712757059078,-500.0,0.00055041,120]
[322089516,1712757059086,-503.38,0.00055041,120]
[322089517,1712757059096,-500.0,0.00055041,120]
[322089518,1712757059105,-1048.49,0.00055041,120]
[322089519,1712757059115,-670.88,0.00055041,120]
[322089520,1712757059125,-151.0,0.00055041,120]
[322089521,1712757059134,-710.67,0.00055041,120]
[322089522,1712757059143,-500.0,0.00055041,120]
[322089523,1712757059152,-500.0,0.00055041,120]
[322089524,1712757059161,-500.0,0.00055041,120]
[322089525,1712757059170,-208.95,0.00055041,120]
[322089526,1712757059180,-500.0,0.00055041,120]
[322089527,1712757059189,-500.0,0.00055041,120]
[322089528,1712757059198,-509.52,0.00055041,120]
[322089529,1712757059207,-345.72,0.00055041,120]
[322089530,1712757059217,-500.0,0.00055041,120]
[322089531,1712757059226,-151.0,0.00055041,120]
[322089532,1712757059237,-500.0,0.00055041,120]
[322089533,1712757059247,-500.0,0.00055041,120]
[322089534,1712757059257,-500.0,0.00055041,120]
[322089535,1712757059266,-331.89,0.00055041,120]
[322089536,1712757059275,-1705.6,0.00055041,120]
[322089537,1712757059284,-500.0,0.00055041,120]
[322089538,1712757059294,-407.91,0.00055041,120]
[322089539,1712757059303,-718.41,0.00055041,120]
[322089540,1712757059313,-500.0,0.00055041,120]
[322089541,1712757059323,-500.0,0.00055041,120]
[322089542,1712757059333,-500.0,0.00055041,120]
[322089543,1712757059342,-534.57,0.00055041,120]
[322089544,1712757059351,-500.0,0.00055041,120]
[322089545,1712757059361,-500.0,0.00055041,120]
[322089546,1712757059370,-1000.0,0.00055041,120]
[322089547,1712757059380,-500.0,0.00055041,120]
[322089548,1712757059390,-500.0,0.00055041,120]
[322089549,1712757059400,-202.25568243,0.00055041,120]
[322089550,1712757059409,-4568.49,0.00055041,120]
[322089551,1712757059418,-500.0,0.00055041,120]
[322089552,1712757059427,-500.0,0.00055041,120]
[322089553,1712757059436,-1357.53,0.00055041,120]
[322089554,1712757059450,-337.33,0.00055041,120]
[322089555,1712757059460,-500.0,0.00055041,120]
[322089556,1712757059470,-500.0,0.00055041,120]
[322089557,1712757059480,-566.8,0.00055041,120]
[322089558,1712757059491,-500.0,0.00055041,2]
[322089559,1712757059501,-500.0,0.00055041,120]
[322089560,1712757059511,-302.4948006,0.00055041,120]
[322089561,1712757059520,-500.0,0.00055041,120]
[322089562,1712757059531,-500.0,0.00055041,120]
[322089563,1712757059540,-577.309546,0.00055041,120]
[322089564,1712757059549,-500.0,0.00055041,120]
[322089565,1712757059559,-500.0,0.00055041,120]
[322089566,1712757059569,-500.0,0.00055041,120]
[322089567,1712757059578,-577.309546,0.00055041,120]
[322089568,1712757059587,-500.0,0.00055041,120]